[Event "*** Titled Tuesday Blitz"]
[Site "Chess.com"]
[Date "2021.02.02"]
[Round "2"]
[White "Problematique_99"]
[Black "Alexander_Moskalenko"]
[Result "0-1"]
[WhiteElo "2515"]
[BlackElo "2794"]
[TimeControl "180+1"]
[EndTime "10:19:05 PST"]
[Termination "Alexander_Moskalenko won by resignation"]

1. e4 {[%clk 0:03:00.9]} 1... e6 {[%clk 0:02:59.8]} 2. d4 {[%clk 0:03:00.6]}
2... d5 {[%clk 0:03:00.3]} 3. exd5 {[%clk 0:03:01.5]} 3... exd5 {[%clk 0:03:00]}
4. Nf3 {[%clk 0:03:01.9]} 4... Nc6 {[%clk 0:02:59.1]} 5. Bd3 {[%clk 0:03:00.5]}
5... Bd6 {[%clk 0:02:59.1]} 6. c3 {[%clk 0:03:00.2]} 6... Nge7 {[%clk
0:02:58.6]} 7. O-O {[%clk 0:03:00.5]} 7... Bf5 {[%clk 0:02:59]} 8. Bxf5 {[%clk
0:02:55.7]} 8... Nxf5 {[%clk 0:02:59.9]} 9. Re1+ {[%clk 0:02:56.2]} 9... Nce7
{[%clk 0:02:58.8]} 10. Nbd2 {[%clk 0:02:45.9]} 10... Qd7 {[%clk 0:02:55.4]} 11.
Ne5 {[%clk 0:02:44.7]} 11... Qe6 {[%clk 0:02:47]} 12. Ndf3 {[%clk 0:02:37.2]}
12... f6 {[%clk 0:02:45.9]} 13. Ng6 {[%clk 0:02:24.5]} 13... Qxe1+ {[%clk
0:02:44.3]} 14. Qxe1 {[%clk 0:02:23.5]} 14... hxg6 {[%clk 0:02:45.2]} 15. Qe6
{[%clk 0:02:21.4]} 15... g5 {[%clk 0:02:43.8]} 16. h3 {[%clk 0:02:15.6]} 16...
Nh4 {[%clk 0:02:43.4]} 17. Nxh4 {[%clk 0:02:13.6]} 17... Rxh4 {[%clk 0:02:42.4]}
18. f3 {[%clk 0:02:08.7]} 18... Kf8 {[%clk 0:02:40.6]} 19. Bd2 {[%clk 0:02:08]}
19... Re8 {[%clk 0:02:40.3]} 20. Re1 {[%clk 0:02:06.3]} 20... a6 {[%clk
0:02:34.5]} 21. Re2 {[%clk 0:02:06.2]} 21... Rh6 {[%clk 0:02:26.9]} 22. Qd7
{[%clk 0:01:56.2]} 22... Kf7 {[%clk 0:02:21.1]} 23. b3 {[%clk 0:01:52.9]} 23...
Rhh8 {[%clk 0:02:19.7]} 24. c4 {[%clk 0:01:48.7]} 24... b6 {[%clk 0:02:10.6]}
25. Qe6+ {[%clk 0:01:45.1]} 25... Kg6 {[%clk 0:02:09.7]} 26. cxd5 {[%clk
0:01:37.2]} 26... Rd8 {[%clk 0:02:01.4]} 27. Kf1 {[%clk 0:01:14.3]} 27... Rh4
{[%clk 0:01:48]} 28. Re4 {[%clk 0:01:07.2]} 28... Rhh8 {[%clk 0:01:46.9]} 29. h4
{[%clk 0:01:05.6]} 29... Rxh4 {[%clk 0:01:39.7]} 30. Rxh4 {[%clk 0:01:05.4]}
30... gxh4 {[%clk 0:01:40.6]} 31. Qg4+ {[%clk 0:01:00]} 31... Kf7 {[%clk
0:01:40.8]} 32. Qe6+ {[%clk 0:00:57.1]} 32... Kf8 {[%clk 0:01:39.9]} 33. a4
{[%clk 0:00:52.6]} 33... a5 {[%clk 0:01:39.2]} 34. Be1 {[%clk 0:00:49.9]} 34...
Bg3 {[%clk 0:01:36.8]} 35. Bxg3 {[%clk 0:00:48.1]} 35... hxg3 {[%clk 0:01:37.7]}
36. Qg4 {[%clk 0:00:43.4]} 36... Rxd5 {[%clk 0:01:36.5]} 37. Qxg3 {[%clk
0:00:43.7]} 37... Rd7 {[%clk 0:01:27.6]} 38. Qg4 {[%clk 0:00:43.8]} 38... Rd8
{[%clk 0:01:23.5]} 39. Qf4 {[%clk 0:00:41.7]} 39... Rd6 {[%clk 0:01:23.4]} 40.
Kf2 {[%clk 0:00:39.3]} 40... Nc6 {[%clk 0:01:23.1]} 41. d5 {[%clk 0:00:36.2]}
41... Ne7 {[%clk 0:01:22.2]} 42. Qc4 {[%clk 0:00:33.5]} 42... Nxd5 {[%clk
0:01:21.7]} 43. g4 {[%clk 0:00:30.7]} 43... g5 {[%clk 0:01:18.1]} 44. Kg3 {[%clk
0:00:30.1]} 44... Ke7 {[%clk 0:01:18.1]} 45. Qe4+ {[%clk 0:00:29.8]} 45... Kd8
{[%clk 0:01:18]} 46. Qh7 {[%clk 0:00:29.3]} 46... Kc8 {[%clk 0:01:17.6]} 47.
Qg8+ {[%clk 0:00:29.4]} 47... Kb7 {[%clk 0:01:18.2]} 48. Qf7 {[%clk 0:00:29.2]}
48... Nf4 {[%clk 0:01:18.6]} 49. Qc4 {[%clk 0:00:28.3]} 49... Rd2 {[%clk
0:01:17.6]} 50. Qe4+ {[%clk 0:00:21.8]} 50... Ka7 {[%clk 0:01:17.5]} 0-1

[Event "*** Titled Tuesday Blitz"]
[Site "Chess.com"]
[Date "2021.02.02"]
[Round "2"]
[White "Vamostodorecto"]
[Black "Kostukov_Alex"]
[Result "0-1"]
[WhiteElo "2457"]
[BlackElo "2303"]
[TimeControl "180+1"]
[EndTime "10:19:06 PST"]
[Termination "Kostukov_Alex won by resignation"]

1. d4 {[%clk 0:03:00.9]} 1... g6 {[%clk 0:02:59.6]} 2. c4 {[%clk 0:03:00.7]}
2... Bg7 {[%clk 0:03:00.1]} 3. e4 {[%clk 0:03:01.1]} 3... d6 {[%clk 0:03:00.7]}
4. Nf3 {[%clk 0:02:59]} 4... e5 {[%clk 0:03:01.2]} 5. Nc3 {[%clk 0:02:57.4]}
5... exd4 {[%clk 0:03:01]} 6. Nxd4 {[%clk 0:02:56.8]} 6... Nc6 {[%clk
0:03:01.9]} 7. Be3 {[%clk 0:02:55]} 7... Nge7 {[%clk 0:03:01.3]} 8. Be2 {[%clk
0:02:46.4]} 8... O-O {[%clk 0:03:00.2]} 9. O-O {[%clk 0:02:45.2]} 9... f5 {[%clk
0:03:00.7]} 10. exf5 {[%clk 0:02:44.1]} 10... Bxd4 {[%clk 0:03:00]} 11. Bxd4
{[%clk 0:02:45]} 11... Nxf5 {[%clk 0:03:00.6]} 12. Be3 {[%clk 0:02:35.1]} 12...
Nxe3 {[%clk 0:03:00.8]} 13. fxe3 {[%clk 0:02:36]} 13... Rxf1+ {[%clk 0:03:01.1]}
14. Qxf1 {[%clk 0:02:32.4]} 14... Be6 {[%clk 0:03:02]} 15. Bf3 {[%clk
0:02:29.3]} 15... Qe7 {[%clk 0:02:54.8]} 16. Re1 {[%clk 0:02:23.9]} 16... Rf8
{[%clk 0:02:42.8]} 17. Nd5 {[%clk 0:02:18.5]} 17... Bxd5 {[%clk 0:02:41.6]} 18.
Bxd5+ {[%clk 0:02:19.4]} 18... Kg7 {[%clk 0:02:40.5]} 19. Qd3 {[%clk 0:02:18.9]}
19... Qf6 {[%clk 0:02:21.9]} 20. Qd2 {[%clk 0:02:15.5]} 20... Ne5 {[%clk
0:02:07.1]} 21. b3 {[%clk 0:02:06.6]} 21... b6 {[%clk 0:01:58.5]} 22. h3 {[%clk
0:02:01.9]} 22... h5 {[%clk 0:01:48.1]} 23. Rd1 {[%clk 0:02:01.3]} 23... Qg5
{[%clk 0:01:45]} 24. Rf1 {[%clk 0:01:43.3]} 24... Rxf1+ {[%clk 0:01:40.5]} 25.
Kxf1 {[%clk 0:01:44.2]} 25... Qf5+ {[%clk 0:01:39.1]} 26. Kg1 {[%clk 0:01:40]}
26... a5 {[%clk 0:01:36.9]} 27. Qd4 {[%clk 0:01:33.7]} 27... Qb1+ {[%clk
0:01:31.4]} 28. Kh2 {[%clk 0:01:32]} 28... Qxa2 {[%clk 0:01:31.5]} 29. Qh4
{[%clk 0:01:32.6]} 29... Qxb3 {[%clk 0:00:52.5]} 30. Qe7+ {[%clk 0:01:31.2]}
30... Kh6 {[%clk 0:00:40.2]} 31. h4 {[%clk 0:01:23.9]} 31... Ng4+ {[%clk
0:00:34.3]} 32. Kg3 {[%clk 0:01:06.5]} 32... Qxe3+ {[%clk 0:00:34.1]} 33. Qxe3+
{[%clk 0:01:05.5]} 33... Nxe3 {[%clk 0:00:35]} 34. Be6 {[%clk 0:01:05.7]} 34...
g5 {[%clk 0:00:32.8]} 35. Kf3 {[%clk 0:01:00.7]} 35... Nc2 {[%clk 0:00:31.4]}
36. hxg5+ {[%clk 0:00:53.7]} 36... Kxg5 {[%clk 0:00:31.5]} 37. Ke4 {[%clk
0:00:54.6]} 37... a4 {[%clk 0:00:27.1]} 38. c5 {[%clk 0:00:50.2]} 38... dxc5
{[%clk 0:00:24.7]} 39. Kd5 {[%clk 0:00:49.5]} 39... Nb4+ {[%clk 0:00:24.8]} 40.
Kc4 {[%clk 0:00:47.6]} 40... a3 {[%clk 0:00:25]} 0-1

[Event "*** Titled Tuesday Blitz"]
[Site "Chess.com"]
[Date "2021.02.02"]
[Round "2"]
[White "Evgeny81"]
[Black "Love_craft"]
[Result "1-0"]
[WhiteElo "2745"]
[BlackElo "2500"]
[TimeControl "180+1"]
[EndTime "10:19:07 PST"]
[Termination "Evgeny81 won on time"]

1. e4 {[%clk 0:03:00.9]} 1... g6 {[%clk 0:02:59.4]} 2. d4 {[%clk 0:03:00.4]}
2... Bg7 {[%clk 0:02:59.8]} 3. Nc3 {[%clk 0:03:00.7]} 3... d6 {[%clk 0:03:00.3]}
4. f3 {[%clk 0:02:58.5]} 4... a6 {[%clk 0:02:59.7]} 5. Be3 {[%clk 0:02:57.6]}
5... b5 {[%clk 0:02:59.9]} 6. Qd2 {[%clk 0:02:57.7]} 6... Bb7 {[%clk 0:02:58.4]}
7. h4 {[%clk 0:02:55.2]} 7... h5 {[%clk 0:02:58.5]} 8. Nh3 {[%clk 0:02:54.9]}
8... Nf6 {[%clk 0:02:56.4]} 9. Ng5 {[%clk 0:02:54.6]} 9... O-O {[%clk
0:02:56.5]} 10. O-O-O {[%clk 0:02:54]} 10... Nbd7 {[%clk 0:02:56.7]} 11. Rg1
{[%clk 0:02:30.4]} 11... Rc8 {[%clk 0:02:56.2]} 12. Kb1 {[%clk 0:02:26.9]} 12...
c5 {[%clk 0:02:56.4]} 13. d5 {[%clk 0:02:25.4]} 13... Ne5 {[%clk 0:02:45.4]} 14.
Rc1 {[%clk 0:02:24.8]} 14... c4 {[%clk 0:02:45.5]} 15. Ne2 {[%clk 0:02:18.7]}
15... a5 {[%clk 0:02:33.2]} 16. Nd4 {[%clk 0:02:11.4]} 16... b4 {[%clk
0:02:30.9]} 17. Qf2 {[%clk 0:02:08]} 17... a4 {[%clk 0:02:20.7]} 18. g4 {[%clk
0:02:07.6]} 18... b3 {[%clk 0:02:17]} 19. gxh5 {[%clk 0:02:02.4]} 19... Nxh5
{[%clk 0:02:14.3]} 20. f4 {[%clk 0:01:59.6]} 20... Nd7 {[%clk 0:01:33.4]} 21.
Be2 {[%clk 0:01:53.5]} 21... a3 {[%clk 0:01:21.7]} 22. Bxh5 {[%clk 0:01:35.8]}
22... axb2 {[%clk 0:01:19.5]} 23. Kxb2 {[%clk 0:01:34.3]} 23... c3+ {[%clk
0:00:18.2]} 24. Kb1 {[%clk 0:01:32.5]} 24... bxa2+ {[%clk 0:00:18.1]} 25. Ka1
{[%clk 0:01:32]} 25... gxh5 {[%clk 0:00:10.7]} 26. Nge6 {[%clk 0:01:25.6]} 26...
fxe6 {[%clk 0:00:08.9]} 27. Rxg7+ {[%clk 0:01:24.2]} 27... Kxg7 {[%clk
0:00:08.1]} 28. Nxe6+ {[%clk 0:01:23.3]} 28... Kh7 {[%clk 0:00:08]} 29. Nxd8
{[%clk 0:01:18.5]} 29... Rcxd8 {[%clk 0:00:08.5]} 30. Bd4 {[%clk 0:01:07.2]}
30... Nf6 {[%clk 0:00:07.9]} 31. Bxf6 {[%clk 0:01:02]} 31... exf6 {[%clk
0:00:07.4]} 32. Qf3 {[%clk 0:01:01.9]} 32... Kh6 {[%clk 0:00:06.7]} 33. Rg1
{[%clk 0:00:56]} 33... Rg8 {[%clk 0:00:05.2]} 34. Rxg8 {[%clk 0:00:55.8]} 34...
Rxg8 {[%clk 0:00:06.1]} 35. Qxc3 {[%clk 0:00:56.1]} 1-0

[Event "*** Titled Tuesday Blitz"]
[Site "Chess.com"]
[Date "2021.02.02"]
[Round "2"]
[White "ElGasanov"]
[Black "KyronGriffith"]
[Result "1-0"]
[WhiteElo "2813"]
[BlackElo "2516"]
[TimeControl "180+1"]
[EndTime "10:19:10 PST"]
[Termination "ElGasanov won by checkmate"]

1. d4 {[%clk 0:03:00.9]} 1... d5 {[%clk 0:02:55.2]} 2. c4 {[%clk 0:02:56.5]}
2... e6 {[%clk 0:02:53.4]} 3. Nf3 {[%clk 0:02:56.7]} 3... Be7 {[%clk 0:02:42.8]}
4. Nc3 {[%clk 0:02:49.8]} 4... Nf6 {[%clk 0:02:42.9]} 5. e3 {[%clk 0:02:49.6]}
5... O-O {[%clk 0:02:42.5]} 6. a3 {[%clk 0:02:50.3]} 6... b6 {[%clk 0:02:38.7]}
7. b4 {[%clk 0:02:49.8]} 7... a5 {[%clk 0:02:35.1]} 8. b5 {[%clk 0:02:46.1]}
8... Bb7 {[%clk 0:02:34.2]} 9. Bb2 {[%clk 0:02:41.6]} 9... Nbd7 {[%clk
0:02:32.5]} 10. cxd5 {[%clk 0:02:36.7]} 10... Nxd5 {[%clk 0:02:20.1]} 11. Bd3
{[%clk 0:02:33.7]} 11... Nxc3 {[%clk 0:02:14.2]} 12. Bxc3 {[%clk 0:02:34.6]}
12... Bf6 {[%clk 0:02:14.2]} 13. O-O {[%clk 0:02:26]} 13... Re8 {[%clk
0:02:03.5]} 14. Qc2 {[%clk 0:02:20.3]} 14... g6 {[%clk 0:02:01.5]} 15. Be4
{[%clk 0:02:17]} 15... Bxe4 {[%clk 0:01:43.8]} 16. Qxe4 {[%clk 0:02:17.9]} 16...
Nc5 {[%clk 0:01:42.2]} 17. Qc6 {[%clk 0:02:05.5]} 17... Na4 {[%clk 0:01:35.7]}
18. Bd2 {[%clk 0:01:50.9]} 18... e5 {[%clk 0:01:12.4]} 19. dxe5 {[%clk
0:01:03.1]} 19... Bxe5 {[%clk 0:01:01.1]} 20. Rad1 {[%clk 0:00:54.6]} 20... Nb2
{[%clk 0:00:31.4]} 21. Rb1 {[%clk 0:00:43.9]} 21... Re6 {[%clk 0:00:26.3]} 22.
Qc2 {[%clk 0:00:42.2]} 22... Nd3 {[%clk 0:00:24.6]} 23. Rfd1 {[%clk 0:00:36.6]}
23... Nc5 {[%clk 0:00:21]} 24. Bc3 {[%clk 0:00:34.6]} 24... Qe7 {[%clk
0:00:19.3]} 25. Nxe5 {[%clk 0:00:33.3]} 25... Rxe5 {[%clk 0:00:20.2]} 26. Bxe5
{[%clk 0:00:33.6]} 26... Qxe5 {[%clk 0:00:21.1]} 27. Rd4 {[%clk 0:00:32.8]}
27... Re8 {[%clk 0:00:21.1]} 28. Rbd1 {[%clk 0:00:32.2]} 28... Kg7 {[%clk
0:00:20.8]} 29. h3 {[%clk 0:00:31.2]} 29... h5 {[%clk 0:00:21.1]} 30. Qc4 {[%clk
0:00:30]} 30... Qe7 {[%clk 0:00:20.6]} 31. Rd5 {[%clk 0:00:28.1]} 31... Qe6
{[%clk 0:00:20.6]} 32. Qd4+ {[%clk 0:00:28.1]} 32... Kh7 {[%clk 0:00:20.5]} 33.
Rd8 {[%clk 0:00:27.8]} 33... Re7 {[%clk 0:00:20.7]} 34. Qh8# {[%clk 0:00:24.3]}
1-0

[Event "*** Titled Tuesday Blitz"]
[Site "Chess.com"]
[Date "2021.02.02"]
[Round "2"]
[White "markowskitomasz"]
[Black "night_player"]
[Result "1-0"]
[WhiteElo "2628"]
[BlackElo "2273"]
[TimeControl "180+1"]
[EndTime "10:19:10 PST"]
[Termination "markowskitomasz won by resignation"]

1. d4 {[%clk 0:03:00.9]} 1... f5 {[%clk 0:02:59.3]} 2. Nf3 {[%clk 0:02:59.1]}
2... d6 {[%clk 0:02:58.8]} 3. e3 {[%clk 0:02:54.7]} 3... Nf6 {[%clk 0:02:59.1]}
4. Be2 {[%clk 0:02:54.2]} 4... g6 {[%clk 0:02:59.6]} 5. O-O {[%clk 0:02:54]}
5... Bg7 {[%clk 0:03:00.5]} 6. c4 {[%clk 0:02:54]} 6... O-O {[%clk 0:03:00.8]}
7. Nc3 {[%clk 0:02:52]} 7... c6 {[%clk 0:03:01.1]} 8. b4 {[%clk 0:02:51.6]} 8...
Qc7 {[%clk 0:03:00.7]} 9. Rb1 {[%clk 0:02:49.5]} 9... e5 {[%clk 0:03:00.4]} 10.
b5 {[%clk 0:02:49.1]} 10... e4 {[%clk 0:03:00]} 11. Nd2 {[%clk 0:02:48.8]} 11...
Be6 {[%clk 0:02:57.9]} 12. a4 {[%clk 0:02:40.5]} 12... Bf7 {[%clk 0:02:54]} 13.
Ba3 {[%clk 0:02:39.1]} 13... Rd8 {[%clk 0:02:53.4]} 14. Qb3 {[%clk 0:02:31.7]}
14... Nbd7 {[%clk 0:02:49.3]} 15. Rfc1 {[%clk 0:02:22]} 15... c5 {[%clk
0:02:46.8]} 16. Nd5 {[%clk 0:02:10.8]} 16... Nxd5 {[%clk 0:02:43.6]} 17. cxd5
{[%clk 0:02:11.4]} 17... b6 {[%clk 0:02:43.4]} 18. f3 {[%clk 0:02:02.1]} 18...
Nf6 {[%clk 0:02:27]} 19. fxe4 {[%clk 0:01:46.1]} 19... fxe4 {[%clk 0:02:25.6]}
20. Bc4 {[%clk 0:01:26.9]} 20... Qb7 {[%clk 0:02:19.5]} 21. Rf1 {[%clk
0:01:21.6]} 21... Bxd5 {[%clk 0:01:58]} 22. Rxf6 {[%clk 0:01:18]} 22... Bxc4
{[%clk 0:01:57.8]} 23. Qxc4+ {[%clk 0:01:18]} 23... d5 {[%clk 0:01:57.9]} 24.
Qf1 {[%clk 0:01:17.9]} 24... Bxf6 {[%clk 0:01:32.3]} 25. Qxf6 {[%clk 0:01:13.9]}
25... Rac8 {[%clk 0:01:21.5]} 26. Rf1 {[%clk 0:01:10.5]} 26... Qd7 {[%clk
0:00:56.9]} 27. dxc5 {[%clk 0:01:04.6]} 27... bxc5 {[%clk 0:00:56.4]} 28. Nxe4
{[%clk 0:00:52.2]} 28... Rf8 {[%clk 0:00:45.9]} 29. Bxc5 {[%clk 0:00:28.7]}
29... dxe4 {[%clk 0:00:18.7]} 30. Bxf8 {[%clk 0:00:27.2]} 1-0

[Event "*** Titled Tuesday Blitz"]
[Site "Chess.com"]
[Date "2021.02.02"]
[Round "2"]
[White "nocnypako"]
[Black "FairChess_on_YouTube"]
[Result "0-1"]
[WhiteElo "2581"]
[BlackElo "2918"]
[TimeControl "180+1"]
[EndTime "10:19:12 PST"]
[Termination "FairChess_on_YouTube won by checkmate"]

1. d4 {[%clk 0:03:00.9]} 1... d5 {[%clk 0:02:58.1]} 2. c4 {[%clk 0:03:00.6]}
2... c6 {[%clk 0:02:58.7]} 3. Nf3 {[%clk 0:02:59]} 3... Nf6 {[%clk 0:02:58.8]}
4. Nc3 {[%clk 0:02:57.9]} 4... a6 {[%clk 0:02:58.4]} 5. c5 {[%clk 0:02:57.2]}
5... Bf5 {[%clk 0:02:56]} 6. Bf4 {[%clk 0:02:57.6]} 6... Nbd7 {[%clk 0:02:55.4]}
7. h3 {[%clk 0:02:56.2]} 7... g6 {[%clk 0:02:55.2]} 8. e3 {[%clk 0:02:56.3]}
8... Bg7 {[%clk 0:02:55.3]} 9. Be2 {[%clk 0:02:54.5]} 9... O-O {[%clk
0:02:55.3]} 10. O-O {[%clk 0:02:54.3]} 10... Ne4 {[%clk 0:02:55.8]} 11. g4
{[%clk 0:02:41]} 11... Be6 {[%clk 0:02:43.1]} 12. Nd2 {[%clk 0:02:17.6]} 12...
f5 {[%clk 0:02:27.3]} 13. Ncxe4 {[%clk 0:02:05.9]} 13... fxe4 {[%clk 0:02:21.4]}
14. f3 {[%clk 0:01:57.1]} 14... Rxf4 {[%clk 0:02:12.9]} 15. exf4 {[%clk
0:01:52.3]} 15... Bxd4+ {[%clk 0:02:12.9]} 16. Kg2 {[%clk 0:01:52]} 16... Nxc5
{[%clk 0:02:12.9]} 17. Nb3 {[%clk 0:01:36.7]} 17... Nxb3 {[%clk 0:02:12.6]} 18.
axb3 {[%clk 0:01:32.4]} 18... Bxb2 {[%clk 0:01:53.9]} 19. Ra2 {[%clk 0:01:26.5]}
19... Bg7 {[%clk 0:01:50.9]} 20. fxe4 {[%clk 0:01:20.1]} 20... Qb6 {[%clk
0:01:50.2]} 21. e5 {[%clk 0:01:06.4]} 21... Rf8 {[%clk 0:01:50]} 22. Bd3 {[%clk
0:00:56.2]} 22... d4 {[%clk 0:01:11.2]} 23. Bc4 {[%clk 0:00:41.5]} 23... c5
{[%clk 0:01:07.5]} 24. Qf3 {[%clk 0:00:16.1]} 24... Bxc4 {[%clk 0:01:01.2]} 25.
bxc4 {[%clk 0:00:17]} 25... Qb4 {[%clk 0:00:57.5]} 26. Qd3 {[%clk 0:00:17]}
26... Qb6 {[%clk 0:00:49.1]} 27. Rb1 {[%clk 0:00:15.5]} 27... Qc6+ {[%clk
0:00:45.5]} 28. Kg3 {[%clk 0:00:15.7]} 28... g5 {[%clk 0:00:43]} 29. fxg5 {[%clk
0:00:08.6]} 29... Bxe5+ {[%clk 0:00:41.9]} 30. Kh4 {[%clk 0:00:08.8]} 30... Rf3
{[%clk 0:00:39.6]} 31. Qe2 {[%clk 0:00:05.5]} 31... Bg3+ {[%clk 0:00:38.9]} 32.
Kh5 {[%clk 0:00:03.8]} 32... Qg6# {[%clk 0:00:39.8]} 0-1

[Event "*** Titled Tuesday Blitz"]
[Site "Chess.com"]
[Date "2021.02.02"]
[Round "2"]
[White "Mr_Penings"]
[Black "Sviridov_Valery"]
[Result "1-0"]
[WhiteElo "2603"]
[BlackElo "2936"]
[TimeControl "180+1"]
[EndTime "10:19:15 PST"]
[Termination "Mr_Penings won by resignation"]

1. c4 {[%clk 0:03:00.1]} 1... g6 {[%clk 0:02:48.7]} 2. g3 {[%clk 0:02:59.3]}
2... Bg7 {[%clk 0:02:49.6]} 3. Bg2 {[%clk 0:02:59.5]} 3... c5 {[%clk 0:02:50.1]}
4. Nc3 {[%clk 0:02:58.6]} 4... Nc6 {[%clk 0:02:50.1]} 5. d3 {[%clk 0:02:59]}
5... e6 {[%clk 0:02:50]} 6. h4 {[%clk 0:02:57.8]} 6... h6 {[%clk 0:02:49.5]} 7.
h5 {[%clk 0:02:57.4]} 7... g5 {[%clk 0:02:49.1]} 8. f4 {[%clk 0:02:57.1]} 8...
gxf4 {[%clk 0:02:48.7]} 9. Bxf4 {[%clk 0:02:52.9]} 9... d6 {[%clk 0:02:48.7]}
10. Nf3 {[%clk 0:02:47]} 10... Nge7 {[%clk 0:02:47.4]} 11. Qd2 {[%clk
0:02:16.7]} 11... a6 {[%clk 0:02:45.7]} 12. O-O-O {[%clk 0:02:11.8]} 12... b5
{[%clk 0:02:42.5]} 13. Rdf1 {[%clk 0:01:41.7]} 13... e5 {[%clk 0:02:26.6]} 14.
Be3 {[%clk 0:01:37.4]} 14... Be6 {[%clk 0:02:27]} 15. b3 {[%clk 0:01:30.7]}
15... Qd7 {[%clk 0:01:49.1]} 16. Nh4 {[%clk 0:01:28.8]} 16... d5 {[%clk
0:01:33.4]} 17. Bxc5 {[%clk 0:01:17.6]} 17... Rc8 {[%clk 0:01:29.2]} 18. cxd5
{[%clk 0:00:47.2]} 18... Nxd5 {[%clk 0:01:27.7]} 19. Ne4 {[%clk 0:00:37.1]}
19... Nce7 {[%clk 0:00:24.4]} 20. Kb1 {[%clk 0:00:35.2]} 20... O-O {[%clk
0:00:22.5]} 21. Rc1 {[%clk 0:00:32.7]} 21... f5 {[%clk 0:00:21.9]} 22. Nf2
{[%clk 0:00:27.4]} 22... b4 {[%clk 0:00:20.1]} 23. Bxb4 {[%clk 0:00:23.3]} 23...
Nxb4 {[%clk 0:00:20]} 24. Qxb4 {[%clk 0:00:24.2]} 24... Nd5 {[%clk 0:00:20.1]}
25. Bxd5 {[%clk 0:00:21.2]} 25... Bxd5 {[%clk 0:00:21]} 26. e4 {[%clk
0:00:18.6]} 26... fxe4 {[%clk 0:00:20.6]} 27. Nxe4 {[%clk 0:00:18.5]} 27... Qg4
{[%clk 0:00:16.3]} 28. Nf6+ {[%clk 0:00:16.2]} 1-0

[Event "*** Titled Tuesday Blitz"]
[Site "Chess.com"]
[Date "2021.02.02"]
[Round "2"]
[White "floplover"]
[Black "Nikolakis2014"]
[Result "0-1"]
[WhiteElo "2309"]
[BlackElo "2634"]
[TimeControl "180+1"]
[EndTime "10:19:16 PST"]
[Termination "Nikolakis2014 won on time"]

1. d4 {[%clk 0:03:00.6]} 1... Nf6 {[%clk 0:02:59.3]} 2. c4 {[%clk 0:03:00]} 2...
e6 {[%clk 0:02:59.5]} 3. Nc3 {[%clk 0:03:00.1]} 3... Bb4 {[%clk 0:02:59]} 4. Qc2
{[%clk 0:02:55.9]} 4... O-O {[%clk 0:02:57.3]} 5. e4 {[%clk 0:02:54.2]} 5... d5
{[%clk 0:02:56.6]} 6. e5 {[%clk 0:02:54.2]} 6... Ne4 {[%clk 0:02:56.9]} 7. Bd3
{[%clk 0:02:54.3]} 7... c5 {[%clk 0:02:57.2]} 8. Nf3 {[%clk 0:02:54.8]} 8...
cxd4 {[%clk 0:02:55.7]} 9. Nxd4 {[%clk 0:02:55.7]} 9... Nd7 {[%clk 0:02:55.9]}
10. Bf4 {[%clk 0:02:54.7]} 10... Qb6 {[%clk 0:02:52.2]} 11. Bxe4 {[%clk
0:02:12.1]} 11... dxe4 {[%clk 0:02:10.3]} 12. Qxe4 {[%clk 0:01:58.1]} 12... Nc5
{[%clk 0:01:57.6]} 13. Qe3 {[%clk 0:01:50.9]} 13... Bxc3+ {[%clk 0:01:40.1]} 14.
bxc3 {[%clk 0:01:44.2]} 14... a6 {[%clk 0:01:36.9]} 15. O-O {[%clk 0:01:40.3]}
15... Qc7 {[%clk 0:01:37.1]} 16. Rfe1 {[%clk 0:01:34.2]} 16... b6 {[%clk
0:01:37.1]} 17. Qg3 {[%clk 0:01:34.2]} 17... Kh8 {[%clk 0:01:32.5]} 18. Qh4
{[%clk 0:01:06.1]} 18... Bb7 {[%clk 0:01:27.4]} 19. Re3 {[%clk 0:01:04.8]} 19...
Be4 {[%clk 0:01:24.9]} 20. Rh3 {[%clk 0:00:26.8]} 20... Bg6 {[%clk 0:01:24.3]}
21. Re1 {[%clk 0:00:21.6]} 21... Nd3 {[%clk 0:01:19.3]} 22. Ree3 {[%clk
0:00:20.4]} 22... Qxc4 {[%clk 0:01:17.2]} 23. Bg5 {[%clk 0:00:17.6]} 23... Qxc3
{[%clk 0:01:08.7]} 24. g3 {[%clk 0:00:13.9]} 24... Qa1+ {[%clk 0:00:54.9]} 25.
Kg2 {[%clk 0:00:13.7]} 25... Ne1+ {[%clk 0:00:54.9]} 26. Rxe1 {[%clk 0:00:11]}
26... Qxe1 {[%clk 0:00:55]} 27. Nf3 {[%clk 0:00:11.9]} 27... Qe4 {[%clk
0:00:53.7]} 28. Bf4 {[%clk 0:00:09.2]} 28... Rfc8 {[%clk 0:00:51.6]} 29. Qg4
{[%clk 0:00:08.8]} 29... Rc3 {[%clk 0:00:47.9]} 30. Rh4 {[%clk 0:00:08.6]} 30...
Rac8 {[%clk 0:00:42.3]} 31. a4 {[%clk 0:00:06.9]} 31... b5 {[%clk 0:00:41.7]}
0-1

[Event "*** Titled Tuesday Blitz"]
[Site "Chess.com"]
[Date "2021.02.02"]
[Round "2"]
[White "Caracternin123"]
[Black "Snowflake"]
[Result "1-0"]
[WhiteElo "2680"]
[BlackElo "2339"]
[TimeControl "180+1"]
[EndTime "10:19:17 PST"]
[Termination "Caracternin123 won by checkmate"]

1. e4 {[%clk 0:03:00.9]} 1... c5 {[%clk 0:02:56]} 2. Nf3 {[%clk 0:03:00.9]} 2...
Nc6 {[%clk 0:02:56.5]} 3. d4 {[%clk 0:03:00.9]} 3... cxd4 {[%clk 0:02:57.4]} 4.
Nxd4 {[%clk 0:03:01.6]} 4... Nf6 {[%clk 0:02:58]} 5. Nc3 {[%clk 0:03:01.5]} 5...
e5 {[%clk 0:02:57.6]} 6. Ndb5 {[%clk 0:03:01.4]} 6... d6 {[%clk 0:02:57.5]} 7.
Bg5 {[%clk 0:03:01.1]} 7... a6 {[%clk 0:02:55]} 8. Na3 {[%clk 0:03:01.3]} 8...
Be7 {[%clk 0:02:54]} 9. Bxf6 {[%clk 0:03:00.4]} 9... Bxf6 {[%clk 0:02:54.9]} 10.
Nd5 {[%clk 0:03:00.6]} 10... b5 {[%clk 0:02:55]} 11. c4 {[%clk 0:03:00.2]} 11...
b4 {[%clk 0:02:55]} 12. Nc2 {[%clk 0:03:00.3]} 12... Bg5 {[%clk 0:02:54.1]} 13.
g3 {[%clk 0:02:55.7]} 13... Rb8 {[%clk 0:02:50.4]} 14. b3 {[%clk 0:02:54.2]}
14... Be6 {[%clk 0:02:45.4]} 15. h4 {[%clk 0:02:54.2]} 15... Bh6 {[%clk
0:02:45.2]} 16. Bh3 {[%clk 0:02:54.6]} 16... O-O {[%clk 0:02:45]} 17. Kf1 {[%clk
0:02:53.6]} 17... g6 {[%clk 0:02:43.9]} 18. Kg2 {[%clk 0:02:48.5]} 18... a5
{[%clk 0:02:39.1]} 19. h5 {[%clk 0:02:39.1]} 19... Bg7 {[%clk 0:02:31.7]} 20.
hxg6 {[%clk 0:02:17.5]} 20... hxg6 {[%clk 0:02:32.6]} 21. Bxe6 {[%clk
0:02:04.1]} 21... fxe6 {[%clk 0:02:32.8]} 22. Nde3 {[%clk 0:01:57.3]} 22... Nd4
{[%clk 0:02:20]} 23. Ng4 {[%clk 0:01:30.7]} 23... d5 {[%clk 0:02:11.8]} 24. Qd2
{[%clk 0:01:03.5]} 24... g5 {[%clk 0:01:58.4]} 25. Nxd4 {[%clk 0:00:58.2]} 25...
exd4 {[%clk 0:01:57.4]} 26. exd5 {[%clk 0:00:57.4]} 26... exd5 {[%clk
0:01:58.3]} 27. Nh6+ {[%clk 0:00:57.7]} 27... Bxh6 {[%clk 0:01:48.7]} 28. Rxh6
{[%clk 0:00:58.6]} 28... dxc4 {[%clk 0:01:29.2]} 29. bxc4 {[%clk 0:00:59.5]}
29... Rb7 {[%clk 0:00:57.1]} 30. Rah1 {[%clk 0:00:57]} 30... Rg7 {[%clk
0:00:55.1]} 31. Qd3 {[%clk 0:00:47.6]} 31... Qa8+ {[%clk 0:00:13.4]} 32. Kg1
{[%clk 0:00:46.1]} 32... Kf7 {[%clk 0:00:12.4]} 33. Qf5+ {[%clk 0:00:43.5]}
33... Ke8 {[%clk 0:00:12.5]} 34. Re6+ {[%clk 0:00:38.3]} 34... Re7 {[%clk
0:00:12.4]} 35. Rxe7+ {[%clk 0:00:32]} 35... Kd8 {[%clk 0:00:12.1]} 36. Qxf8#
{[%clk 0:00:31.8]} 1-0